bitfinex-derivatives/quotes_SOLF0:USTF0_20260115
["timestamp","ask_amount","ask_price","bid_price","bid_amount"]
[1768494439811,0.04500009,143.41,143.35,2.80020308]
[1768494440399,0.04500009,143.41,143.37,6.279]
[1768494441111,0.04500009,143.41,143.35,6.2798]
[1768494441911,0.04500009,143.41,143.33,85.20020308]
[1768494442719,3.26980868,143.51,143.37,2.80020308]
[1768494442902,3.26980868,143.48,143.37,2.80020308]
[1768494443107,8.50664041,143.47,143.38,6.2786]
[1768494443315,5.23808382,143.46,143.38,6.2786]
[1768494443507,3.26980868,143.47,143.38,6.2786]
[1768494443708,3.26980868,143.47,143.39,6.2783]
[1768494444016,5.23821532,143.46,143.39,6.2783]
[1768494444206,3.26980868,143.47,143.39,6.2783]
[1768494444413,8.50902329,143.46,143.37,82.4]
[1768494444612,3.26980868,143.46,143.37,85.20020308]
[1768494445212,3.26980868,143.46,143.38,6.2788]
[1768494448317,8.29029175,143.45,143.38,6.2788]
[1768494448611,3.04420054,143.45,143.38,6.2788]
[1768494449014,5.24680326,143.44,143.38,6.2788]
[1768494449319,3.04420054,143.45,143.38,6.2788]
[1768494449509,5.24894568,143.44,143.38,6.2788]
[1768494449709,3.04420054,143.45,143.37,82.4]
[1768494449909,5.24894568,143.44,143.37,82.4]
[1768494450104,3.04420054,143.45,143.37,82.4]
[1768494450105,9.32000054,143.45,143.37,82.4]
[1768494450310,3.04420054,143.43,143.35,6.2798]
[1768494450812,3.04420054,143.42,143.35,6.2798]
[1768494452719,9.32040054,143.45,143.33,97.7024]
[1768494452919,5.25518962,143.44,143.33,97.7024]
[1768494453118,5.25518962,143.43,143.33,97.7024]
[1768494453319,5.25518962,143.42,143.33,97.7024]
[1768494453519,5.25518962,143.41,143.33,97.7024]
[1768494453720,3.04420054,143.44,143.33,97.7024]
[1768494453914,5.25742216,143.43,143.33,97.7024]
[1768494454118,5.25742216,143.42,143.33,97.7024]
[1768494454316,5.25742216,143.41,143.33,97.7024]
[1768494454516,3.04420054,143.44,143.33,97.7024]
[1768494454816,8.302132,143.43,143.36,6.2794]
[1768494455019,8.302132,143.42,143.36,6.2794]
[1768494455223,3.04420054,143.4,143.31,4.37886263]
[1768494455423,3.04420054,143.4,143.32,82.42]
[1768494456221,5.25907828,143.39,143.32,82.42]
[1768494456423,3.04420054,143.4,143.32,82.42]
[1768494456722,5.25837602,143.39,143.32,82.42]
[1768494456921,3.04420054,143.4,143.32,82.42]
[1768494457124,8.30257826,143.39,143.29,180.1531]
[1768494457313,3.04420054,143.39,143.29,180.1531]
[1768494457712,8.30224637,143.38,143.29,82.42]
[1768494457918,5.25804583,143.37,143.29,82.42]
[1768494458126,0.04440872,143.35,143.29,88.7024]
[1768494458322,0.04440872,143.35,143.25,239.55385772]
[1768494458524,0.04440872,143.35,143.25,321.97385772]
[1768494458724,5.25604614,143.34,143.27,6.2834]
[1768494458924,3.04420054,143.36,143.25,321.97385772]
[1768494459118,5.25581276,143.35,143.26,97.7529]
[1768494459320,3.04420054,143.36,143.27,6.2833]
[1768494459516,8.29540395,143.35,143.25,321.97385772]
[1768494459826,0.05144731,143.33,143.25,321.97385772]
[1768494460023,0.05144731,143.33,143.25,82.42]
[1768494460521,0.05144731,143.33,143.25,88.7042]
[1768494460725,0.05144731,143.33,143.25,82.42]
[1768494460914,3.09564785,143.33,143.28,0.05170617]
[1768494464624,3.04420054,143.32,143.25,6.2843]
[1768494464826,3.04420054,143.32,143.23,97.7715]
[1768494465026,3.04420054,143.32,143.22,180.1969]
[1768494466128,3.04420054,143.35,143.23,97.7733]
[1768494466327,3.04420054,143.35,143.22,180.1969]
[1768494466729,3.04420054,143.35,143.22,82.42]
[1768494466925,3.04420054,143.33,143.23,6.2853]
[1768494467235,3.04420054,143.33,143.22,82.42]
[1768494467236,3.04420054,143.33,143.22,180.1979]
[1768494467435,0.05256224,143.3,143.25,6.2845]
[1768494476845,0.05256224,143.3,143.22,88.7054]
[1768494477146,0.05256224,143.3,143.22,82.42]
[1768494477942,0.05256224,143.3,143.23,6.2854]
[1768494478643,0.05256224,143.3,143.22,82.42]
[1768494479045,4.57518919,143.36,143.24,4.37886263]
[1768494479735,6.2807,143.34,143.24,4.37886263]
[1768494480139,6.2811,143.33,143.25,6.2845]
[1768494480541,0.04629056,143.3,143.25,6.2845]
[1768494482446,0.04629056,143.3,143.19,4.37886263]
[1768494482447,3.40658684,143.3,143.19,4.37886263]
[1768494482841,3.36029628,143.3,143.18,82.46]
[1768494483046,6.2837,143.27,143.19,6.2868]
[1768494483345,0.05055495,143.26,143.19,6.2868]
[1768494483843,0.05055495,143.26,143.22,0.04578381]
[1768494486738,0.05055495,143.26,143.22,6.33148381]
[1768494487445,0.05055495,143.26,143.22,0.04578381]
[1768494489356,3.41085123,143.26,143.19,6.2868]
[1768494490344,3.41085123,143.26,143.2,6.2867]
[1768494490752,3.36029628,143.26,143.2,6.2867]
[1768494491144,0.05161615,143.24,143.21,6.2861]
[1768494491452,3.36029628,143.29,143.19,4.37886263]
[1768494491952,3.36029628,143.29,143.23,6.2854]
[1768494494449,3.36029628,143.29,143.24,6.2849]
[1768494495147,3.36029628,143.29,143.19,184.67636263]
[1768494496756,3.36029628,143.29,143.22,6.2858]
[1768494497547,3.36029628,143.29,143.2,6.2864]
[1768494497943,3.36029628,143.29,143.19,86.87886263]
[1768494498144,3.36029628,143.29,143.13,208.2566]
[1768494498145,3.36029628,143.27,143.18,6.2872]
[1768494498857,3.36029628,143.26,143.17,4.37886263]
[1768494499153,3.36029628,143.26,143.13,195.6778]
[1768494499154,3.36029628,143.26,143.14,4.37886263]
[1768494499846,9.64559628,143.24,143.14,10.66816263]
[1768494500253,3.36029628,143.23,143.12,4.37886263]
[1768494500647,9.64629628,143.22,143.12,10.66886263]
[1768494501253,3.36548032,143.21,143.12,10.66886263]
[1768494502254,3.36548032,143.21,143.11,82.5]
[1768494503556,9.65228032,143.2,143.11,82.5]
[1768494504163,9.65228032,143.2,143.11,88.7906]
[1768494504352,9.65228032,143.2,143.11,82.5]
[1768494504861,3.36548032,143.2,143.11,88.7906]
[1768494505651,3.36548032,143.2,143.11,82.5]
[1768494506760,3.36548032,143.2,143.12,6.2902]
[1768494506961,3.36548032,143.2,143.11,82.5]
[1768494507866,9.65238032,143.2,143.11,82.5]
[1768494508658,3.33519966,143.19,143.11,82.5]
[1768494509356,3.33519966,143.19,143.1,6.2909]
[1768494510670,3.33519966,143.18,143.08,88.8117]
[1768494510967,3.33519966,143.18,143.08,82.52]
[1768494511170,3.33519966,143.18,143.05,325.52950064]
[1768494511463,6.1492127,143.17,143.06,2.81401304]
[1768494511768,9.62379966,143.16,143.07,6.2921]
[1768494512165,3.33519966,143.16,143.06,2.81401304]
[1768494512366,3.33519966,143.16,143.07,2.81401304]
[1768494512860,3.33519966,143.16,143.08,6.2917]
[1768494513569,9.62379966,143.16,143.07,2.81401304]
[1768494514463,2.81401304,143.18,143.05,325.52950064]
[1768494514464,3.33519966,143.15,143.05,325.52950064]
[1768494514659,3.33519966,143.15,143.05,328.34351368]
[1768494514964,0.04480732,143.13,143.1,0.05090184]
[1768494515464,0.04480732,143.13,143.05,328.34351368]
[1768494518463,0.04480732,143.13,143.06,6.2928]
[1768494518968,3.38000698,143.13,143.05,82.52]
[1768494519160,3.38000698,143.13,143.04,9.10741304]
[1768494519557,3.33519966,143.15,143.06,2.81401304]
[1768494519975,0.05001021,143.1,143.04,2.81401304]
[1768494520371,3.33519966,143.13,143.03,180.4677]
[1768494520571,3.33519966,143.13,143.04,2.81401304]
[1768494520864,3.33519966,143.13,143.06,6.2929]
[1768494521673,82.56,143.17,143.02,97.9128]
[1768494521674,3.33519966,143.11,143.02,2.81401304]
[1768494522469,3.33519966,143.11,143.0,180.4902]
[1768494522663,3.33519966,143.11,143.01,2.81401304]
[1768494523371,3.33519966,143.11,143.03,6.2938]
[1768494523572,3.33519966,143.11,143.01,2.81401304]
[1768494524168,3.33519966,143.11,143.0,85.37401304]
[1768494524773,3.33519966,143.09,143.0,91.66921304]
[1768494525070,3.33519966,143.09,143.0,82.56]
[1768494525672,3.33519966,143.09,142.98,242.45149168]
[1768494526770,3.33519966,143.09,142.99,2.81401304]
[1768494527063,3.33519966,143.09,143.02,6.2946]
[1768494527260,3.33519966,143.09,142.98,337.57937864]
[1768494527459,3.33519966,143.09,143.01,6.295]
[1768494527968,3.33519966,143.09,143.02,6.2946]
[1768494528173,0.04507964,143.06,143.02,6.2946]
[1768494528373,0.04507964,143.06,143.01,2.81401304]
[1768494528674,3.33519966,143.12,143.04,2.81401304]
[1768494529161,3.33519966,143.12,143.04,9.10761304]
[1768494529965,3.33519966,143.12,143.07,0.05259726]
[1768494530667,3.33519966,143.12,143.03,2.81401304]
[1768494530866,3.33519966,143.12,143.01,82.58]
[1768494531072,3.09533583,143.11,143.01,85.39401304]
[1768494531774,3.09533583,143.1,143.01,85.39401304]
[1768494532469,3.09533583,143.08,143.01,2.81401304]
[1768494532674,3.09533583,143.08,142.98,322.23747864]
[1768494532863,3.09533583,143.08,142.99,2.81401304]
[1768494533869,3.09533583,143.08,143.01,2.81401304]
[1768494535470,3.09533583,143.08,142.98,322.23747864]
[1768494535670,3.09533583,143.08,143.0,2.81401304]
[1768494535866,3.09533583,143.08,143.0,9.10951304]
[1768494536074,3.09533583,143.13,143.04,2.81401304]
[1768494536677,3.09533583,143.13,143.05,6.2932]
[1768494536872,3.09533583,143.13,143.04,2.81401304]
[1768494537071,3.09533583,143.12,143.02,2.81401304]
[1768494537579,9.38613583,143.11,143.03,6.2942]
[1768494539681,3.09533583,143.1,143.03,6.2942]
[1768494540375,3.09533583,143.13,143.04,2.81401304]
[1768494540881,3.09533583,143.13,143.05,6.2933]
[1768494541270,3.09533583,143.13,143.04,2.81401304]
[1768494541470,3.09533583,143.13,143.06,6.2928]
[1768494541786,3.09533583,143.13,143.04,2.81401304]
[1768494542481,3.09533583,143.12,143.04,2.81401304]
[1768494542975,6.2904,143.12,143.02,82.6]
[1768494543181,3.09533583,143.11,143.03,2.81401304]
[1768494545679,3.09533583,143.14,143.05,2.81401304]
[1768494545984,8.30376897,143.13,143.05,2.81401304]
[1768494546185,3.09533583,143.13,143.05,2.81401304]
[1768494548990,3.09533583,143.13,143.03,2.81401304]
[1768494549281,3.09533583,143.11,143.02,85.41401304]
[1768494549880,0.05119424,143.08,143.02,85.41401304]
[1768494551488,0.05119424,143.08,143.04,2.81401304]
[1768494556993,0.05119424,143.08,143.02,82.6]
[1768494557198,0.05119424,143.08,143.02,85.41401304]
[1768494558198,0.05119424,143.08,143.04,0.04669729]
[1768494559096,3.09533583,143.11,143.04,2.86071033]
[1768494559295,5.2355421,143.1,143.04,2.86071033]
[1768494559497,5.2355421,143.09,143.04,2.86071033]
[1768494559699,3.09533583,143.11,143.04,2.86071033]
[1768494559898,5.23575231,143.1,143.04,2.86071033]
[1768494560201,5.23575231,143.09,143.04,2.86071033]
[1768494560403,3.09533583,143.11,143.04,2.86071033]
[1768494560590,5.23630578,143.1,143.04,2.86071033]
[1768494560793,3.09533583,143.11,143.04,2.86071033]
[1768494560994,5.23629896,143.1,143.04,2.86071033]
[1768494561194,3.09533583,143.11,143.04,2.86071033]
[1768494561392,5.23746794,143.1,143.04,2.86071033]
[1768494561604,3.09533583,143.11,143.04,2.86071033]
[1768494561801,5.23767631,143.1,143.04,2.86071033]
[1768494562104,3.09533583,143.11,143.04,2.86071033]
[1768494562299,5.2390271,143.1,143.04,2.86071033]
[1768494562497,5.23990641,143.09,143.04,0.04669729]
[1768494562697,3.07176219,143.1,143.04,0.04669729]
[1768494564205,5.24281346,143.09,143.04,0.04669729]
[1768494564500,3.07176219,143.1,143.04,0.04669729]
[1768494564708,5.24296845,143.09,143.04,0.04669729]
[1768494565007,3.32292096,143.13,143.05,2.81401304]
[1768494565205,8.56574389,143.12,143.06,6.2929]
[1768494565508,5.24282293,143.11,143.06,6.2929]
[1768494565706,0.0445282,143.1,143.06,6.2929]
[1768494565910,0.0445282,143.1,143.08,0.0523809]
[1768494574815,3.32292096,143.13,143.08,6.3443809]
[1768494575119,5.24556424,143.12,143.08,0.0523809]
[1768494575319,6.424e-05,143.11,143.08,0.0523809]
[1768494575510,3.32292096,143.13,143.08,0.0523809]
[1768494575916,3.32292096,143.13,143.09,6.2916]
[1768494578615,3.32292096,143.13,143.08,6.3443809]
[1768494578812,3.32292096,143.13,143.08,0.0523809]
[1768494579615,3.32292096,143.13,143.09,6.2915]
[1768494581913,6.2876,143.19,143.08,0.0523809]
[1768494582116,82.6,143.18,143.08,0.0523809]
[1768494582313,82.6,143.18,143.06,97.8867]
[1768494582719,88.8877,143.18,143.12,0.04650684]
[1768494582915,88.8877,143.18,143.06,97.8867]
[1768494584020,3.32292096,143.17,143.1,6.291]
[1768494584221,3.32292096,143.17,143.11,0.05105777]
[1768494585922,3.32292096,143.17,143.11,6.34165777]
[1768494587321,1.975e-05,143.16,143.13,6.2896]
[1768494587622,0.04416927,143.15,143.11,0.05105777]
[1768494588923,0.04416927,143.15,143.11,6.34175777]
[1768494590222,3.36709023,143.15,143.11,0.05105777]
[1768494590525,3.36709023,143.15,143.09,6.2912]
[1768494591120,3.36709023,143.15,143.1,6.2911]
[1768494591519,3.32292096,143.15,143.1,6.2911]
[1768494594432,3.32292096,143.15,143.06,102.28461271]
[1768494594433,3.32292096,143.15,143.11,6.2907]
[1768494594627,3.05578879,143.18,143.11,6.2907]
[1768494597019,3.05578879,143.18,143.09,6.2913]
[1768494597324,3.05578879,143.18,143.07,97.8827]
[1768494597727,3.05578879,143.15,143.07,6.2922]
[1768494599028,3.05578879,143.15,143.08,6.292]
[1768494599229,3.05578879,143.15,143.05,102.29361271]
[1768494599416,5.20016084,143.14,143.05,102.29361271]
[1768494599621,5.20016084,143.13,143.05,102.29361271]
[1768494599830,3.05578879,143.15,143.09,6.2915]
[1768494600228,5.20015562,143.14,143.09,6.2915]
[1768494600425,3.05578879,143.12,143.07,6.2922]
[1768494600628,5.434e-05,143.11,143.04,97.9022]
[1768494600831,3.05578879,143.15,143.04,97.9022]
[1768494601029,3.05578879,143.15,143.06,97.8896]
[1768494601532,3.05578879,143.17,143.06,97.8896]
[1768494602032,3.05578879,143.17,143.1,6.2911]
[1768494602232,3.05578879,143.17,143.08,97.8747]
[1768494602422,3.05578879,143.17,143.08,102.27261271]
[1768494602826,3.05578879,143.17,143.12,6.2902]
[1768494603227,3.05578879,143.17,143.08,4.39791271]
[1768494603732,0.05068991,143.14,143.08,6.2918]
[1768494604132,0.05068991,143.14,143.09,6.2913]
[1768494604330,0.05068991,143.14,143.07,82.58]
[1768494605936,0.05068991,143.14,143.1,6.2911]
[1768494606641,0.05068991,143.14,143.08,6.2917]
[1768494606838,0.05068991,143.14,143.07,82.58]
[1768494607835,0.05068991,143.14,143.09,6.2915]
[1768494608440,0.05068991,143.14,143.1,6.2911]
[1768494609729,0.05068991,143.14,143.07,82.58]
[1768494609730,3.05578879,143.17,143.11,6.34341743]
[1768494609929,3.05578879,143.17,143.11,0.05281743]
[1768494610129,3.05578879,143.17,143.08,4.39791271]
[1768494610941,3.05578879,143.17,143.11,0.05262646]
[1768494611343,3.05578879,143.17,143.12,6.2902]
[1768494612745,5.13075857,143.16,143.12,6.2902]
[1768494612948,5.857e-05,143.15,143.12,6.2902]
[1768494613139,3.05578879,143.17,143.12,6.2902]
[1768494614041,4.39791271,143.23,143.11,4.45053917]
[1768494614042,3.05578879,143.22,143.11,4.45053917]
[1768494614249,3.05578879,143.22,143.12,180.4292]
[1768494614446,3.05578879,143.22,143.13,97.8422]
[1768494614648,3.05578879,143.22,143.17,6.288]
[1768494615442,3.05578879,143.25,143.17,6.288]
[1768494615946,3.05578879,143.25,143.15,6.2888]
[1768494616748,9.34048879,143.25,143.15,6.2888]
[1768494616945,3.05578879,143.24,143.16,6.2884]
[1768494617537,3.05578879,143.24,143.17,6.288]
[1768494617749,3.05578879,143.24,143.19,0.04559678]
[1768494624958,5.03816226,143.23,143.19,0.04559678]
[1768494625153,3.05578879,143.24,143.19,0.04559678]
[1768494625353,5.03816226,143.23,143.19,0.04559678]
[1768494625555,3.05578879,143.24,143.19,0.04559678]
[1768494625752,5.03748481,143.23,143.19,0.04559678]
[1768494625949,3.05578879,143.24,143.19,0.04559678]
[1768494626156,5.03748481,143.23,143.19,0.04559678]
[1768494626349,3.05578879,143.24,143.19,0.04559678]
[1768494627253,3.05578879,143.24,143.2,6.2867]
[1768494629561,3.16174284,143.26,143.2,6.2867]
[1768494631463,8.19196954,143.25,143.2,6.2867]
[1768494631669,3.16174284,143.25,143.2,6.2867]
[1768494632360,3.16174284,143.25,143.21,0.04631702]
[1768494637962,20.93,143.32,143.21,0.04631702]
[1768494638162,7.83625444,143.31,143.22,2.81016743]
[1768494638364,5.02608701,143.3,143.23,97.7727]
[1768494638564,2.81016743,143.33,143.23,97.7727]
[1768494638769,5.02275858,143.32,143.24,2.81016743]
[1768494638967,5.02275858,143.31,143.25,0.04812095]
[1768494639162,2.81016743,143.33,143.26,6.2839]
[1768494639357,5.02274995,143.32,143.25,0.04812095]
[1768494639564,5.02274995,143.32,143.24,2.81016743]
[1768494639565,82.54,143.34,143.24,100.57256743]
[1768494639869,251.53265872,143.36,143.28,6.2831]
[1768494640167,3.16174284,143.34,143.28,6.2831]
[1768494640359,3.16174284,143.34,143.26,6.2838]
[1768494640564,3.16174284,143.33,143.26,6.2838]
[1768494640762,3.16174284,143.33,143.3,0.052706]
[1768494641068,3.16174284,143.33,143.24,100.57256743]
[1768494641773,3.16174284,143.33,143.27,6.2835]
[1768494642264,3.16174284,143.33,143.27,6.33185113]
[1768494645268,3.16174284,143.33,143.28,6.2831]
[1768494645566,0.04815182,143.31,143.28,6.2831]
[1768494645770,3.16174284,143.35,143.28,6.2831]
[1768494646573,1.21478689,143.39,143.28,6.2831]
[1768494646574,3.16174284,143.39,143.3,2.81016743]
[1768494647165,3.16174284,143.39,143.33,0.04860102]
[1768494647470,3.16174284,143.41,143.33,0.04860102]
[1768494648870,3.16174284,143.41,143.33,6.32950102]
[1768494649472,3.16174284,143.41,143.34,6.2805]
[1768494650266,3.16174284,143.41,143.36,0.04516871]
[1768494651974,3.36009845,143.4,143.3,85.31016743]
[1768494652475,6.17026588,143.39,143.32,6.2813]
[1768494652677,3.36009845,143.39,143.32,6.2813]
[1768494653078,3.36009845,143.39,143.33,6.2808]
[1768494653275,3.36009845,143.39,143.34,0.04410926]
[1768494654073,9.845e-05,143.39,143.36,6.2796]
[1768494654380,2.81016743,143.42,143.36,6.2796]
[1768494654688,2.81016743,143.42,143.37,6.2792]
[1768494654976,2.81016743,143.44,143.37,6.2792]
[1768494655177,2.81016743,143.44,143.38,0.0463868]
[1768494656083,3.36009845,143.41,143.33,3.33523338]
[1768494656790,3.36009845,143.41,143.36,6.2796]
[1768494656983,3.36009845,143.41,143.33,3.33523338]
[1768494657478,3.36009845,143.41,143.35,6.2801]
[1768494657684,3.36009845,143.41,143.33,3.33523338]
[1768494658785,3.36009845,143.41,143.34,9.61543338]
[1768494659386,3.36009845,143.41,143.34,3.33523338]
[1768494660288,3.36009845,143.41,143.35,6.2801]
[1768494661289,6.17026588,143.43,143.36,9.61483338]
[1768494661587,3.36009845,143.43,143.36,9.61483338]
[1768494661784,3.36009845,143.43,143.37,9.61423338]
[1768494661978,6.17026588,143.47,143.38,3.33523338]
[1768494662177,3.36009845,143.46,143.38,3.33523338]
[1768494662576,0.04751264,143.44,143.38,3.33523338]
[1768494662782,0.04751264,143.44,143.39,6.2783]
[1768494662981,0.04751264,143.44,143.39,9.61353338]
[1768494663389,3.36009845,143.46,143.4,0.04551131]
[1768494664295,3.36009845,143.45,143.4,0.04551131]
[1768494669991,3.36009845,143.42,143.34,85.77523338]
[1768494670196,3.36009845,143.42,143.35,9.61533338]
[1768494671993,3.36009845,143.4,143.33,6.2808]
[1768494672291,3.40571299,143.4,143.33,6.2808]
[1768494673187,3.40571299,143.4,143.33,9.61603338]
[1768494673789,3.40571299,143.4,143.34,3.33523338]
[1768494674895,6.21588042,143.4,143.34,3.33523338]
[1768494677087,3.36009845,143.39,143.32,3.33523338]
[1768494677289,3.36009845,143.37,143.3,3.33523338]
[1768494677685,3.36009845,143.37,143.27,6.14540081]
[1768494677997,3.40405629,143.35,143.27,3.33523338]
[1768494678400,3.40405629,143.35,143.28,3.33523338]
[1768494680097,3.40405629,143.35,143.25,2.81016743]
[1768494680098,3.40405629,143.35,143.25,6.14540081]
[1768494680395,3.40405629,143.35,143.26,3.33523338]
[1768494680698,3.36009845,143.35,143.26,3.33523338]
[1768494681200,0.05241532,143.32,143.26,3.33523338]
[1768494681800,0.05241532,143.32,143.26,9.61923338]
[1768494682194,0.05241532,143.32,143.26,3.33523338]
[1768494682396,3.36957806,143.32,143.24,3.27044443]
[1768494682894,3.31716274,143.32,143.24,3.27044443]
[1768494683103,9.59866274,143.32,143.24,3.27044443]
[1768494683297,0.04479784,143.29,143.24,3.27044443]
[1768494685301,0.04479784,143.29,143.24,9.55534443]
[1768494685998,0.04479784,143.29,143.22,6.13256895]
[1768494686199,0.04479784,143.29,143.23,3.32240152]
[1768494687003,0.04479784,143.29,143.24,9.60730152]
[1768494688401,3.08304514,143.29,143.24,6.2849]
[1768494689902,3.08304514,143.29,143.23,6.2852]
[1768494690103,3.08304514,143.29,143.22,6.13256895]
[1768494690903,0.04479784,143.29,143.23,3.32240152]
[1768494691502,0.04479784,143.29,143.25,6.2845]
[1768494692800,0.04479784,143.29,143.23,3.32240152]
[1768494693703,0.04479784,143.29,143.25,0.044722]
[1768494693907,85.5182473,143.34,143.25,3.36712352]
[1768494694101,3.0382473,143.33,143.25,3.36712352]
[1768494694309,3.0382473,143.33,143.25,9.60690152]
[1768494695312,3.0382473,143.36,143.28,3.36894271]
[1768494695809,3.0382473,143.36,143.28,3.32240152]
[1768494696507,3.0382473,143.36,143.24,4.38527816]
[1768494696712,5.00873754,143.35,143.25,3.32240152]
[1768494697011,3.0382473,143.34,143.25,3.32240152]
[1768494697210,0.04510896,143.31,143.25,3.32240152]
[1768494697909,0.04510896,143.31,143.26,3.32240152]
[1768494698304,0.04510896,143.31,143.26,9.60640152]
[1768494698506,3.0382473,143.34,143.26,9.60640152]
[1768494698709,3.0382473,143.34,143.26,3.32240152]
[1768494699011,3.0382473,143.34,143.27,0.05092507]
[1768494701614,3.0382473,143.34,143.27,3.37332659]
[1768494703213,3.0382473,143.33,143.27,0.05092507]
[1768494704417,4.38527816,143.36,143.27,3.37332659]
[1768494704418,3.0382473,143.35,143.27,3.37332659]
[1768494704811,3.0382473,143.35,143.27,3.32240152]
[1768494705213,3.0382473,143.35,143.3,0.05198402]
[1768494705518,3.0382473,143.34,143.27,3.32240152]
[1768494705911,3.09097814,143.34,143.27,3.32240152]
[1768494706520,3.09097814,143.34,143.25,9.60670152]
[1768494706912,3.0382473,143.34,143.26,6.2841]
[1768494707119,3.0382473,143.34,143.25,3.32240152]
[1768494707320,0.04914822,143.31,143.25,3.32240152]
[1768494709925,0.04914822,143.31,143.25,9.60690152]
[1768494710423,0.04914822,143.31,143.26,9.60650152]
[1768494710919,3.0382473,143.34,143.22,3.1136721]
[1768494711118,3.11478419,143.32,143.25,6.2845]
[1768494711323,0.04805823,143.3,143.25,6.2845]
[1768494711923,0.04805823,143.3,143.25,9.3981721]
[1768494713326,3.16284242,143.3,143.23,3.1136721]
[1768494713824,3.11478419,143.3,143.23,3.1136721]
[1768494714125,0.0487842,143.28,143.23,3.1136721]
[1768494714321,0.0487842,143.28,143.25,6.2845]
[1768494714519,0.0487842,143.28,143.23,3.1136721]
[1768494714822,3.11478419,143.33,143.25,0.04757718]
[1768494715030,5.03138747,143.32,143.25,3.16124928]
[1768494715217,3.11478419,143.33,143.25,3.16124928]
[1768494715521,5.03426124,143.32,143.25,3.16124928]
[1768494715827,3.11478419,143.33,143.26,6.2841]
[1768494716126,5.03426124,143.32,143.26,6.2841]
[1768494716323,3.11478419,143.33,143.26,6.2841]
[1768494716521,5.03751738,143.32,143.26,6.2841]
[1768494716719,0.04910817,143.3,143.28,0.04501821]
[1768494720828,0.04910817,143.3,143.28,6.32821821]
[1768494721030,0.04910817,143.3,143.28,0.04501821]
[1768494721526,0.04910817,143.3,143.28,6.32811821]
[1768494722123,3.11478419,143.35,143.28,9.44179031]
[1768494722329,5.0501728,143.34,143.28,9.44179031]
[1768494722530,5.0501728,143.33,143.28,9.44179031]
[1768494722719,5.0501728,143.32,143.28,9.44179031]
[1768494722926,3.11478419,143.35,143.28,9.44179031]
[1768494723128,5.05363813,143.34,143.28,9.44179031]
[1768494723325,5.05363813,143.33,143.28,9.44179031]
[1768494723525,3.813e-05,143.32,143.29,6.2826]
[1768494723724,3.11478419,143.38,143.29,3.1136721]
[1768494724536,3.11478419,143.38,143.32,0.04545399]
[1768494724835,3.11478419,143.37,143.29,3.1136721]
[1768494725338,9.39408419,143.37,143.29,9.3964721]
[1768494725638,3.11478419,143.36,143.29,9.3964721]
[1768494726031,3.11478419,143.35,143.27,9.3971721]
[1768494726730,3.1629606,143.32,143.25,9.3978721]
[1768494728146,3.11478419,143.31,143.21,3.1136721]
[1768494728433,3.11478419,143.29,143.21,3.1136721]
[1768494728835,7.50006235,143.31,143.21,3.1136721]
[1768494729039,0.04450972,143.26,143.21,3.1136721]
[1768494729341,3.11478419,143.31,143.23,6.2853]
[1768494729542,3.11478419,143.34,143.25,3.16125884]
[1768494729929,3.11478419,143.34,143.25,3.1136721]
[1768494730138,3.11478419,143.34,143.26,6.284]
[1768494730838,3.11478419,143.34,143.29,0.0473754]
[1768494731238,3.11478419,143.34,143.25,3.1136721]
[1768494731437,0.04616646,143.33,143.25,3.1136721]
[1768494731633,3.16095065,143.33,143.25,3.1136721]
[1768494732647,3.16095065,143.33,143.25,9.3980721]
[1768494732850,3.16095065,143.33,143.25,3.1136721]
[1768494733039,0.04616646,143.33,143.25,3.1136721]
[1768494733741,0.04616646,143.33,143.27,6.2836]
[1768494735644,4.98507333,143.32,143.27,6.2836]
[1768494735846,0.04616646,143.33,143.27,6.2836]
[1768494736148,4.98507333,143.32,143.27,6.2836]
[1768494736343,0.04616646,143.33,143.27,6.2836]
[1768494736549,8.09996031,143.32,143.26,3.1136721]
[1768494736743,0.04616646,143.33,143.23,3.1136721]
[1768494736744,8.1004792,143.31,143.23,3.1136721]
[1768494737051,4.98569501,143.3,143.23,3.1136721]
[1768494737352,0.04488396,143.28,143.23,3.1136721]
[1768494737753,0.04488396,143.28,143.23,9.3988721]
[1768494741347,0.04488396,143.28,143.23,3.1136721]
[1768494741556,0.04488396,143.28,143.21,6.286]
[1768494741854,0.04488396,143.28,143.21,9.56672768]
[1768494742054,4.98700127,143.27,143.21,9.56672768]
[1768494742353,3.14150234,143.28,143.21,9.56672768]
[1768494742543,4.98607425,143.27,143.21,9.56672768]
[1768494742748,3.14150234,143.28,143.22,6.2858]
[1768494744145,4.98492228,143.27,143.22,6.2858]
[1768494744349,3.14150234,143.28,143.22,6.2858]
[1768494744554,3.14150234,143.28,143.23,6.2854]
[1768494744856,4.98474786,143.27,143.23,6.2854]
[1768494745052,0.04488396,143.28,143.23,6.2854]
[1768494745352,4.98393116,143.27,143.23,6.2854]